fUSD/lending_fUSD_20260227
["ID","MTS","AMOUNT","RATE_DAILY","PERIOD"]
[406824141,1772209842759,-500.0,0.0001289,2]
[406824143,1772209842768,-500.0,0.0001289,2]
[406824145,1772209842778,-500.0,0.0001289,2]
[406824148,1772209842789,-500.0,0.0001289,2]
[406824150,1772209842798,-500.0,0.0001289,2]
[406824151,1772209842808,-500.0,0.0001289,2]
[406824153,1772209842822,-500.0,0.0001289,2]
[406824156,1772209842833,-500.0,0.0001289,2]
[406824157,1772209842844,-500.0,0.0001289,2]
[406824159,1772209842854,-500.0,0.0001289,2]
[406824161,1772209842863,-500.0,0.0001289,2]
[406824164,1772209842874,-500.0,0.0001289,2]
[406824165,1772209842885,-500.0,0.0001289,2]
[406824168,1772209842896,-500.0,0.0001289,2]
[406824170,1772209842909,-1174.903106,0.00012942,2]
[406824171,1772209842919,-2045.958033,0.00012942,2]
[406824174,1772209842931,-1198.06,0.00013014,2]
[406824177,1772209842941,-2500.0,0.0001302,2]
[406824179,1772209842950,-320.22794059,0.0001302,2]
[406824181,1772209842960,-6453.0,0.0001303,2]
[406824183,1772209842969,-490.0,0.00013034,2]
[406824185,1772209842979,-159.05,0.00013151,2]
[406824187,1772209842988,-200.0,0.00013288,2]
[406824191,1772209842997,-2195.67203992,0.00013301,2]
[406824194,1772209843007,-3240.0,0.00013425,2]
[406824197,1772209843016,-15552.20665491,0.00013506,2]
[406824200,1772209843027,-2000.0,0.00013568,2]
[406824202,1772209843037,-500.0,0.00013698,2]
[406824204,1772209843046,-500.0,0.00013698,2]
[406824206,1772209843055,-500.0,0.00013698,2]
[406824208,1772209843064,-500.0,0.00013698,2]
[406824210,1772209843073,-500.0,0.00013698,2]
[406824212,1772209843086,-500.0,0.00013698,2]
[406824214,1772209843095,-500.0,0.00013698,2]
[406824217,1772209843105,-500.0,0.00013698,2]
[406824219,1772209843114,-500.0,0.00013698,2]
[406824221,1772209843125,-500.0,0.00013698,2]
[406824223,1772209843136,-500.0,0.00013698,2]
[406824225,1772209843146,-500.0,0.00013698,2]
[406824227,1772209843156,-479.11436236,0.00013698,2]
[406824229,1772209843166,-500.0,0.00013698,2]
[406824231,1772209843175,-500.0,0.00013698,2]
[406824233,1772209843185,-500.0,0.00013698,2]
[406824235,1772209843194,-500.0,0.00013698,2]
[406824237,1772209843203,-500.0,0.00013698,2]
[406824239,1772209843213,-500.0,0.00013698,2]
[406824241,1772209843222,-500.0,0.00013698,2]
[406824243,1772209843231,-500.0,0.00013698,2]
[406824245,1772209843240,-500.0,0.00013698,2]
[406824247,1772209843249,-500.0,0.00013698,2]
[406824249,1772209843259,-500.0,0.00013698,2]
[406824251,1772209843268,-500.0,0.00013698,2]
[406824253,1772209843278,-500.0,0.00013698,2]
[406824255,1772209843287,-500.0,0.00013698,2]
[406824257,1772209843296,-500.0,0.00013698,2]
[406824259,1772209843305,-500.0,0.00013698,2]
[406824260,1772209843315,-500.0,0.00013698,2]
[406824263,1772209843324,-500.0,0.00013698,2]
[406824265,1772209843333,-500.0,0.00013698,2]
[406824267,1772209843342,-500.0,0.00013698,2]
[406824269,1772209843351,-596.4968816,0.00013698,2]
[406824271,1772209843361,-500.0,0.00013698,2]
[406824273,1772209843370,-500.0,0.00013698,2]
[406824275,1772209843380,-500.0,0.00013698,2]
[406824277,1772209843389,-500.0,0.00013698,2]
[406824279,1772209843399,-500.0,0.00013698,2]
[406824281,1772209843409,-500.0,0.00013698,2]
[406824283,1772209843418,-500.0,0.00013698,2]
[406824285,1772209843427,-500.0,0.00013698,2]
[406824287,1772209843437,-500.0,0.00013698,2]
[406824289,1772209843446,-500.0,0.00013698,2]
[406824291,1772209843456,-500.0,0.00013698,2]
[406824315,1772209843683,-500.0,0.00013698,2]
[406824318,1772209843694,-500.0,0.00013698,2]
[406824320,1772209843704,-500.0,0.00013698,2]
[406824322,1772209843714,-500.0,0.00013698,2]
[406824324,1772209843723,-500.0,0.00013698,2]
[406824326,1772209843733,-500.0,0.00013698,2]
[406824328,1772209843742,-500.0,0.00013698,2]
[406824330,1772209843751,-500.0,0.00013698,2]
[406824331,1772209843760,-500.0,0.00013698,2]
[406824333,1772209843769,-500.0,0.00013698,2]
[406824335,1772209843783,-500.0,0.00013698,2]
[406824336,1772209843804,-500.0,0.00013698,2]
[406824338,1772209843826,-461.04,0.00013698,2]
[406824341,1772209843843,-500.0,0.00013698,2]
[406824342,1772209843852,-500.0,0.00013698,2]
[406824345,1772209843862,-500.0,0.00013698,2]
[406824346,1772209843871,-500.0,0.00013698,2]
[406824349,1772209843884,-500.0,0.00013698,2]
[406824351,1772209843894,-500.0,0.00013698,2]
[406824353,1772209843903,-500.0,0.00013698,2]
[406824355,1772209843914,-500.0,0.00013698,2]
[406824357,1772209843923,-500.0,0.00013698,2]
[406824359,1772209843932,-500.0,0.00013698,2]
[406824361,1772209843941,-500.0,0.00013698,2]
[406824363,1772209843951,-500.0,0.00013698,2]
[406824365,1772209843961,-500.0,0.00013698,2]
[406824367,1772209843971,-500.0,0.00013698,2]
[406824369,1772209843980,-500.0,0.00013698,2]
[406824371,1772209843989,-500.0,0.00013698,2]
[406824373,1772209843999,-500.0,0.00013698,2]
[406824375,1772209844007,-500.0,0.00013698,2]
[406824377,1772209844016,-500.0,0.00013698,2]
[406824379,1772209844027,-500.0,0.00013698,2]
[406824381,1772209844037,-500.0,0.00013698,2]
[406824383,1772209844046,-500.0,0.00013698,2]
[406824385,1772209844056,-500.0,0.00013698,2]
[406824387,1772209844066,-500.0,0.00013698,2]
[406824389,1772209844078,-166.62,0.00013698,2]
[406824391,1772209844092,-500.0,0.00013698,2]
[406824393,1772209844102,-500.0,0.00013698,2]
[406824395,1772209844111,-500.0,0.00013698,2]
[406824397,1772209844122,-500.0,0.00013698,2]
[406824399,1772209844131,-278.70046284,0.00013698,2]
[406824401,1772209844141,-500.0,0.00013698,2]
[406824403,1772209844151,-500.0,0.00013698,2]
[406824405,1772209844160,-500.0,0.00013698,2]
[406824407,1772209844169,-500.0,0.00013698,2]
[406824409,1772209844179,-500.0,0.00013698,2]
[406824411,1772209844188,-500.0,0.00013698,2]
[406824414,1772209844198,-500.0,0.00013698,2]
[406824415,1772209844207,-500.0,0.00013698,2]
[406824418,1772209844216,-500.0,0.00013698,2]
[406824420,1772209844226,-500.0,0.00013698,2]
[406824421,1772209844235,-500.0,0.00013698,2]
[406824423,1772209844244,-500.0,0.00013698,2]
[406824426,1772209844254,-500.0,0.00013698,2]
[406824428,1772209844263,-500.0,0.00013698,2]
[406824430,1772209844278,-500.0,0.00013698,2]
[406824432,1772209844287,-500.0,0.00013698,2]
[406824434,1772209844296,-500.0,0.00013698,2]
[406824436,1772209844306,-500.0,0.00013698,2]
[406824438,1772209844315,-500.0,0.00013698,2]
[406824440,1772209844324,-500.0,0.00013698,2]
[406824442,1772209844333,-500.0,0.00013698,2]
[406824444,1772209844343,-500.0,0.00013698,2]
[406824446,1772209844352,-500.0,0.00013698,2]
[406824448,1772209844361,-500.0,0.00013698,2]
[406824450,1772209844370,-500.0,0.00013698,2]
[406824452,1772209844381,-500.0,0.00013698,2]
[406824454,1772209844390,-500.0,0.00013698,2]
[406824456,1772209844399,-500.0,0.00013698,2]
[406824458,1772209844408,-500.0,0.00013698,2]
[406824460,1772209844417,-500.0,0.00013698,2]
[406824462,1772209844427,-500.0,0.00013698,2]
[406824464,1772209844436,-500.0,0.00013698,2]
[406824466,1772209844445,-500.0,0.00013698,2]
[406824468,1772209844454,-500.0,0.00013698,2]
[406824470,1772209844464,-500.0,0.00013698,2]
[406824472,1772209844473,-500.0,0.00013698,2]
[406824474,1772209844482,-500.0,0.00013698,2]
[406824476,1772209844491,-500.0,0.00013698,2]
[406824478,1772209844502,-500.0,0.00013698,2]
[406824480,1772209844512,-500.0,0.00013698,2]
[406824482,1772209844521,-500.0,0.00013698,2]
[406824484,1772209844530,-500.0,0.00013698,2]
[406824486,1772209844540,-500.0,0.00013698,2]
[406824488,1772209844549,-500.0,0.00013698,2]
[406824490,1772209844559,-500.0,0.00013698,2]
[406824492,1772209844568,-500.0,0.00013698,2]
[406824494,1772209844577,-500.0,0.00013698,2]
[406824496,1772209844587,-386.19326799,0.00013698,2]
[406824498,1772209844596,-500.0,0.00013698,2]
[406824499,1772209844605,-500.0,0.00013698,2]
[406824500,1772209844615,-500.0,0.00013698,2]
[406824501,1772209844624,-210.48,0.00013698,2]
[406824502,1772209844633,-16301.24,0.00013699,2]
[406824503,1772209844643,-200.0,0.00013699,2]
[406824504,1772209844660,-2657.75,0.00013699,2]
[406824505,1772209844675,-9999.99,0.00013699,2]
[406824506,1772209844688,-29999.99,0.00013699,2]
[406824507,1772209844697,-150.0,0.00013788,2]
[406824508,1772209844707,-500.0,0.00013836,2]
[406824509,1772209844716,-202.72622012,0.00013836,2]
[406824510,1772209844726,-2605.0,0.00014333,2]
[406824511,1772209844735,-15552.20665491,0.00014604,2]
[406824513,1772209844744,-214.78,0.00014783,14]
[406824515,1772209844753,-368.42176142,0.0001479,2]
[406824517,1772209844762,-159.05,0.00014795,2]
[406824519,1772209844772,-50000.0,0.000148,2]
[406824521,1772209844781,-509.0,0.0001489,2]
[406824523,1772209844790,-250.0,0.00015,2]
[406824525,1772209844799,-15552.20665491,0.00015703,2]
[406824527,1772209844809,-150.0,0.00016,2]
[406824529,1772209844818,-150.0,0.00016,2]
[406824531,1772209844827,-500.0,0.00016438,2]
[406824533,1772209844837,-306.73,0.00016459,2]
[406824535,1772209844846,-500.0,0.00016493,2]
[406824537,1772209844856,-500.0,0.00016548,2]
[406824539,1772209844865,-500.0,0.00016602,2]
[406824541,1772209844874,-500.0,0.00016657,2]
[406824543,1772209844883,-500.0,0.00016712,2]
[406824545,1772209844893,-165.5,0.00016712,2]
[406824547,1772209844903,-500.0,0.00016767,2]
[406824549,1772209844912,-15552.20665491,0.00016801,2]
[406824551,1772209844921,-500.0,0.00016822,2]
[406824553,1772209844930,-500.0,0.00016876,2]
[406824555,1772209844940,-500.0,0.00016904,2]
[406824557,1772209844949,-500.0,0.00016931,2]
[406824559,1772209844958,-200.0,0.00016983,2]
[406824561,1772209844967,-500.0,0.00016986,2]
[406824563,1772209844976,-300.0,0.00017,2]
[406824565,1772209844986,-500.0,0.00017041,2]
[406824567,1772209844996,-500.0,0.00017096,2]
[406824569,1772209845005,-389.172521,0.00017119,7]
[406824571,1772209845014,-500.0,0.0001715,2]
[406824573,1772209845024,-500.0,0.00017205,2]
[406824575,1772209845033,-2610.895791,0.00017257,7]
[406824577,1772209845042,-4773.902077,0.00017257,7]
[406824579,1772209845051,-500.0,0.0001726,2]
[406824581,1772209845064,-500.0,0.00017315,2]
[406824583,1772209845073,-500.0,0.0001737,2]
[406824585,1772209845086,-500.0,0.00017424,2]
[406824587,1772209845095,-324.01719171,0.00017479,2]
[406824589,1772209845104,-468.0,0.00017625,3]
[406824591,1772209845113,-150.0,0.00017625,3]
[406824593,1772209845123,-150.0,0.00017625,3]
[406824595,1772209845132,-468.0,0.0001768,3]
[406824597,1772209845141,-150.0,0.0001768,3]
[406824599,1772209845150,-150.0,0.0001768,3]
[406824601,1772209845161,-5832.8299848,0.000177,2]
[406824603,1772209845171,-1783.25363654,0.00017708,2]
[406824605,1772209845180,-150.0,0.00017711,2]
[406824607,1772209845189,-150.0,0.00017711,7]
[406824609,1772209845199,-468.0,0.00017735,3]
[406824611,1772209845208,-200.0,0.00017735,3]
[406824613,1772209845217,-238.75555333,0.00017735,3]
[406824615,1772209845226,-468.0,0.00017789,3]
[406824617,1772209845236,-5000.0,0.00017808,2]
[406824619,1772209845245,-500.0,0.00017808,2]
[406824621,1772209845254,-500.0,0.00017829,2]
[406824623,1772209845264,-33171.00129421,0.0001783,2]
[406824625,1772209845273,-468.0,0.00017844,3]
[406824626,1772209845283,-500.0,0.00017863,2]
[406824627,1772209845292,-5000.0,0.00017889,2]
[406824628,1772209845302,-151.0,0.00017897,2]
[406824629,1772209845311,-10705.06920545,0.00017897,2]
[406824630,1772209845321,-10705.06920545,0.00017899,2]
[406824631,1772209845330,-468.0,0.00017899,3]
[406824632,1772209845341,-10000.0,0.000179,2]
[406824633,1772209845351,-100000.0,0.000179,2]
[406824634,1772209845360,-967.46295737,0.000179,2]
[406824635,1772209845370,-201.74289142,0.000179,3]
[406824636,1772209845380,-10705.06920545,0.000179,2]
[406824637,1772209845390,-375.94211011,0.000179,2]
[406824638,1772209845399,-15552.20665491,0.000179,2]
[406824639,1772209845409,-203.69193972,0.000179,2]
[406824640,1772209845418,-153.78758465,0.000179,2]
[406824641,1772209845429,-4799.34212235,0.000179,2]
[406824642,1772209845438,-500.0,0.00017918,2]
[406824643,1772209845447,-468.0,0.00017954,3]
[406824644,1772209845457,-262.0,0.00017972,2]
[406824645,1772209845466,-500.0,0.00017972,2]
[406824646,1772209845475,-17060.0,0.00017973,2]
[406824647,1772209845485,-500.0,0.00017973,2]
[406824648,1772209845494,-500.0,0.00017973,2]
[406824649,1772209845504,-500.82123681,0.00017973,2]
[406824650,1772209845514,-502.2190815,0.00017973,2]
[406824651,1772209845523,-500.0,0.00017973,2]
[406824652,1772209845532,-308.59204947,0.00017973,2]
[406824653,1772209845542,-501.50601316,0.00017973,2]
[406824654,1772209845551,-504.17214118,0.00017973,2]
[406824655,1772209845561,-500.0,0.00017973,2]
[406824656,1772209845570,-505.53161927,0.00017973,2]
[406824657,1772209845579,-283.90698305,0.00017973,2]
[406824658,1772209845589,-368.42176142,0.0001799,2]
[406824659,1772209845598,-4788.5429429,0.00017993,2]
[406824660,1772209845608,-6687.8911581,0.00017993,2]
[406824661,1772209845617,-17545.7700819,0.00017993,2]
[406824662,1772209845626,-345911.1744922,0.00017993,2]
[406824663,1772209845635,-151.0,0.00017997,2]
[406824664,1772209845645,-151.0,0.00017997,2]
[406824665,1772209845654,-151.0,0.00017997,2]
[406824666,1772209845664,-500.0,0.00017999,2]
[406824667,1772209845673,-500.0,0.00017999,2]
[406824668,1772209845683,-500.0,0.00017999,2]
[406824669,1772209845692,-500.0,0.00017999,2]
[406824670,1772209845702,-500.0,0.00017999,2]
[406824671,1772209845712,-500.0,0.00017999,2]
[406824672,1772209845722,-458.3,0.00017999,2]
[406824673,1772209845731,-500.0,0.00017999,2]
[406824674,1772209845740,-500.0,0.00017999,2]
[406824675,1772209845749,-500.0,0.00017999,2]
[406824676,1772209845758,-500.0,0.00017999,2]
[406824677,1772209845767,-500.0,0.00017999,2]
[406824678,1772209845777,-563.9784206,0.00017999,2]
[406824679,1772209845787,-150.0,0.00017999,2]
[406824680,1772209845796,-150.0,0.00017999,2]
[406824681,1772209845806,-150.0,0.00017999,2]
[406824682,1772209845815,-150.0,0.00017999,2]
[406824683,1772209845824,-150.0,0.00017999,2]
[406824686,1772209845834,-158.97333181,0.00017999,2]
[406824687,1772209845844,-1000.0,0.00018,2]
[406824688,1772209845853,-391.56886158,0.00018,2]
[406824689,1772209845865,-1929134.31666012,0.00018,2]
[406824690,1772209845874,-485500.27955049,0.00018,2]
[406824692,1772209846084,-950.86853054,0.00018,2]
[406824693,1772209846097,-1260.0,0.00018,2]
[406824694,1772209846110,-956.485885,0.00018,2]
[406824695,1772209846129,-304.14982411,0.00018,2]
[406824696,1772209846212,-367.84381667,0.00018,2]
[406824697,1772209846223,-1639069.15090484,0.00018,2]
[406824698,1772209846233,-151.0,0.00018,2]
[406824699,1772209846242,-151.0,0.00018,2]
[406824700,1772209846252,-151.0,0.00018,2]
[406824701,1772209846261,-151.0,0.00018,2]
[406824702,1772209846270,-151.0,0.00018,2]
[406824703,1772209846280,-151.0,0.00018,2]
[406824704,1772209846289,-202.440074,0.00018,2]
[406824705,1772209846299,-151.0,0.00018,2]
[406824706,1772209846308,-151.0,0.00018,2]
[406824707,1772209846318,-317.205234,0.00018,2]
[406824708,1772209846327,-317.205234,0.00018,2]
[406824709,1772209846336,-317.205234,0.00018,2]
[406824710,1772209846345,-317.205234,0.00018,2]
[406824711,1772209846354,-468.0,0.00018009,3]
[406824712,1772209846364,-468.0,0.00018063,3]
[406824713,1772209846374,-468.0,0.00018118,3]
[406824714,1772209846383,-336.0,0.0001815,2]
[406824715,1772209846393,-468.0,0.00018173,3]
[406824716,1772209846402,-468.0,0.00018228,3]
[406824717,1772209846412,-468.0,0.00018283,3]
[406824718,1772209846421,-468.0,0.00018337,3]
[406824719,1772209846431,-418.0,0.00018355,2]
[406824720,1772209846441,-468.0,0.00018392,3]
[406824721,1772209846450,-468.0,0.00018447,3]
[406824722,1772209846459,-468.0,0.00018502,3]
[406824723,1772209846469,-468.0,0.00018557,3]
[406824724,1772209846479,-2195.67203992,0.00018568,2]
[406824725,1772209846488,-468.0,0.00018611,3]
[406824726,1772209846497,-468.0,0.00018666,3]
[406824727,1772209846507,-468.0,0.00018721,3]
[406824728,1772209846517,-468.0,0.00018776,3]
[406824729,1772209846527,-468.0,0.0001883,3]
[406824730,1772209846537,-486.0,0.00018885,3]
[406824731,1772209846546,-151.0,0.00019178,2]
[406824732,1772209846556,-368.42176142,0.00019705,2]
[406824733,1772209846565,-1783.25363654,0.00019715,2]
[406824734,1772209846574,-345911.1744922,0.00019904,2]
[406824735,1772209846583,-341.15871215,0.00019999,2]
[406824736,1772209846592,-170.9497447,0.00019999,2]
[406824737,1772209846602,-151.0,0.0002,120]
[406824738,1772209846611,-214.78,0.00020675,14]
[406824739,1772209846621,-305.24,0.00020935,2]
[406824740,1772209846630,-518.0,0.00021479,2]
[406824741,1772209846639,-1783.25363654,0.00021722,2]
[406824742,1772209846649,-1068.4683537,0.00021756,2]
[406824743,1772209846658,-3914.9904883,0.00021756,2]
[406824744,1772209846667,-345911.1744922,0.00021815,2]
[406824745,1772209846677,-306.73,0.00021822,2]
[406824746,1772209846686,-1492.2702251,0.00021879,2]
[406824747,1772209846695,-5000.0,0.00021918,2]
[406824748,1772209846704,-159.38,0.00021918,30]
[406824749,1772209846714,-305.24,0.00021981,2]
[406824750,1772209846723,-509.0,0.00022125,8]
[406824751,1772209846732,-500.0,0.00022329,2]
[406824752,1772209846741,-238.4075148,0.00022596,2]
[406824753,1772209846751,-873.5524546,0.00022596,2]
[406824754,1772209846760,-2778.74,0.0002274,2]
[406824755,1772209846770,-332.9704943,0.00022746,2]
[406824756,1772209846779,-437.0,0.00023,7]
[406824757,1772209846788,-164.0,0.00023,7]
[406824758,1772209846797,-305.24,0.00023028,2]
[406824759,1772209846806,-967.46295734,0.00023233,2]
[406824760,1772209846815,-437.0,0.00023288,7]
[406824761,1772209846825,-437.0,0.00023562,7]
[406824762,1772209846834,-151.0,0.00023722,7]
[406824763,1772209846843,-345911.1744922,0.00023725,2]
[406824764,1772209846852,-2195.67203992,0.00023834,2]
[406824765,1772209846861,-437.0,0.00023836,7]
[406824766,1772209846870,-305.24,0.00024075,2]
[406824767,1772209846879,-437.0,0.0002411,7]
[406824768,1772209846888,-164.0,0.00024164,7]
[406824769,1772209846897,-437.0,0.00024164,7]
[406824770,1772209846907,-1000.0,0.00024658,2]
[406824771,1772209846917,-150.0,0.00024658,2]
[406824772,1772209846926,-500.0,0.00024712,2]
[406824773,1772209846935,-305.24,0.00025122,2]
[406824774,1772209846944,-437.0,0.00025373,7]
[406824775,1772209846953,-444.0,0.00025373,7]
[406824776,1772209846962,-166.0,0.00025373,7]
[406824777,1772209846972,-150.0,0.0002589,2]
[406824778,1772209846982,-159.38,0.00026027,30]
[406824779,1772209846991,-437.0,0.00026388,7]
[406824780,1772209847145,-437.0,0.00026581,7]
[406824781,1772209847154,-150.0,0.00027185,2]
[406824782,1772209847164,-438.72,0.00027397,20]
[406824783,1772209847173,-300.0,0.00027397,2]
[406824784,1772209847182,-151.0,0.00027397,2]
[406824785,1772209847191,-437.0,0.00027402,14]
[406824786,1772209847200,-437.0,0.00027789,14]
[406824787,1772209847209,-204.48,0.00028381,2]
[406824788,1772209847218,-437.0,0.00028417,14]
[406824789,1772209847227,-150.0,0.00028544,2]
[406824790,1772209847236,-967.46295734,0.00028567,2]
[406824791,1772209847246,-437.0,0.00028997,14]
[406824792,1772209847255,-2195.67203992,0.00029101,2]
[406824793,1772209847264,-509.0,0.00029359,14]
[406824794,1772209847273,-437.0,0.00029432,14]
[406824795,1772209847283,-204.48,0.00029577,2]
[406824796,1772209847292,-76695.0,0.000297,2]
[406824797,1772209847301,-187.2857674,0.00029879,2]
[406824798,1772209847310,-150.0,0.00029971,2]
[406824799,1772209847319,-159.38,0.00030137,30]
[406824800,1772209847329,-500.0,0.00030411,2]
[406824801,1772209847338,-164.0,0.00030447,14]
[406824802,1772209847347,-437.0,0.00030447,14]
[406824803,1772209847356,-204.48,0.00030773,2]
[406824804,1772209847366,-1032.0,0.00030822,30]
[406824805,1772209847375,-644.0,0.00030822,30]
[406824806,1772209847385,-203.73,0.000309,30]
[406824807,1772209847394,-5531.0,0.000312,3]
[406824808,1772209847404,-150.0,0.0003147,2]
[406824809,1772209847413,-579785.15534364,0.00032,120]
[406824810,1772209847422,-151.0,0.00032,7]
[406824811,1772209847431,-151.0,0.00032,7]
[406824812,1772209847440,-151.0,0.00032,7]
[406824814,1772209847449,-317.205234,0.00032,7]
[406824815,1772209847458,-317.205234,0.00032,7]
[406824816,1772209847467,-317.205234,0.00032,7]
[406824817,1772209847476,-317.205234,0.00032,7]
[406824818,1772209847485,-151.0,0.00032,7]
[406824819,1772209847495,-5531.0,0.000327,5]
[406824820,1772209847504,-904.95,0.000329,14]
[406824821,1772209847514,-2566.84,0.000329,14]
[406824822,1772209847524,-1575.8,0.000329,14]
[406824823,1772209847533,-4838.14053136,0.00033,120]
[406824824,1772209847542,-150.0,0.00033043,2]
[406824825,1772209847552,-1565.09,0.000331,2]
[406824826,1772209847561,-150.0,0.000331,30]
[406824827,1772209847570,-375.94211009,0.00033111,2]
[406824828,1772209847579,-4799.34212234,0.00033111,2]
[406824829,1772209847588,-201.7428914,0.0003365,6]
[406824830,1772209847597,-967.46295734,0.000339,2]
[406824831,1772209847606,-2778.74,0.00033973,2]
[406824832,1772209847616,-895.83,0.00034082,120]
[406824833,1772209847626,-620.13,0.00034082,120]
[406824834,1772209847634,-500.0,0.00034082,30]
[406824835,1772209847644,-583.33,0.00034082,120]
[406824836,1772209847654,-500.0,0.00034082,120]
[406824837,1772209847663,-149952.0,0.00034083,30]
[406824838,1772209847673,-159.38,0.00034247,30]
[406824839,1772209847682,-2195.67203992,0.00034367,2]
[406824840,1772209847691,-150.0,0.00034696,2]
[406824841,1772209847701,-1500.0,0.00034795,2]
[406824842,1772209847710,-395.04,0.000348,30]
[406824843,1772209847720,-500.0,0.00035041,2]
[406824844,1772209847729,-300.0,0.00035206,10]
[406824845,1772209847739,-895.83,0.00035206,120]
[406824846,1772209847748,-620.13,0.00035206,120]
[406824847,1772209847757,-500.0,0.00035206,30]
[406824848,1772209847766,-583.33,0.00035206,120]
[406824849,1772209847775,-500.0,0.00035206,120]
[406824850,1772209847785,-149952.0,0.00035207,30]
[406824851,1772209847795,-2566.84,0.000357,14]
[406824852,1772209847804,-1575.8,0.000357,14]
[406824853,1772209847813,-1340.0,0.00035858,2]
[406824854,1772209847823,-3498.0,0.00035858,2]
[406824855,1772209847832,-618.0,0.00035858,2]
[406824856,1772209847842,-169.0,0.00036,30]
[406824857,1772209847851,-1000.0,0.00036138,2]
[406824858,1772209847871,-1000.0,0.00036138,2]
[406824859,1772209847881,-1000.0,0.00036138,2]
[406824860,1772209847890,-1000.0,0.00036138,2]
[406824861,1772209847900,-1000.0,0.00036138,2]
[406824862,1772209847909,-1698.94,0.00036186,10]
[406824863,1772209847919,-2500.0,0.00036325,10]
[406824864,1772209847928,-151.0,0.00036327,14]
[406824865,1772209847938,-300.0,0.00036329,10]
[406824866,1772209847947,-666.0,0.00036329,30]
[406824867,1772209847956,-300.0,0.00036329,10]
[406824868,1772209847966,-149952.0,0.0003633,30]
[406824869,1772209847975,-904.95,0.000364,14]
[406824870,1772209847984,-150.0,0.0003643,2]
[406824871,1772209847993,-927.15,0.00036463,10]
[406824872,1772209848002,-329.2,0.000365,30]
[406824873,1772209848011,-2500.0,0.00036583,10]
[406824874,1772209848021,-509.0,0.00036593,21]
[406824875,1772209848032,-8677.79,0.00036922,10]
[406824876,1772209848041,-2500.0,0.00036982,10]
[406824877,1772209848050,-895.83,0.00036992,120]
[406824878,1772209848059,-620.13,0.00036992,120]
[406824879,1772209848068,-583.33,0.00036992,120]
[406824880,1772209848078,-500.0,0.00036992,120]
[406824881,1772209848090,-300.0,0.00037453,10]
[406824882,1772209848100,-666.0,0.00037453,30]
[406824883,1772209848109,-300.0,0.00037453,10]
[406824884,1772209848118,-149952.0,0.00037454,30]
[406824885,1772209848128,-784.821,0.00037825,49]
[406824886,1772209848137,-188.24,0.00037825,49]
[406824887,1772209848147,-7567.11510619,0.000381,33]
[406824888,1772209848158,-169.0,0.00038119,30]
[406824889,1772209848167,-2566.84,0.000382,14]
[406824890,1772209848176,-1575.8,0.000382,14]
[406824891,1772209848185,-150.0,0.00038252,2]
[406824892,1772209848194,-159.38,0.00038356,30]
[406824893,1772209848203,-300.0,0.00038576,10]
[406824894,1772209848213,-895.83,0.00038577,120]
[406824895,1772209848222,-620.13,0.00038577,120]